fUST/lending_fUST_20251219
["ID","MTS","AMOUNT","RATE_DAILY","PERIOD"]
[399164660,1766130671706,-500.0,0.00055342,120]
[399164661,1766130671716,-500.0,0.00055342,120]
[399164662,1766130671728,-500.0,0.00055342,120]
[399164663,1766130671737,-500.0,0.00055342,120]
[399164664,1766130671746,-500.0,0.00055342,120]
[399164665,1766130671757,-500.0,0.00055342,120]
[399164666,1766130671766,-500.0,0.00055342,120]
[399164667,1766130671775,-500.0,0.00055342,120]
[399164668,1766130671786,-500.0,0.00055342,120]
[399164669,1766130671797,-799.69,0.00055342,21]
[399164670,1766130671807,-500.0,0.00055342,120]
[399164671,1766130671817,-565.42,0.00055342,120]
[399164672,1766130671826,-500.0,0.00055342,120]
[399164673,1766130671836,-500.0,0.00055342,120]
[399164674,1766130671846,-500.0,0.00055342,120]
[399164675,1766130671856,-500.0,0.00055342,120]
[399164676,1766130671865,-500.0,0.00055342,120]
[399164677,1766130671874,-1745.65,0.00055342,120]
[399164678,1766130671884,-500.0,0.00055342,120]
[399164679,1766130671893,-500.0,0.00055342,120]
[399164680,1766130671903,-1000.0,0.00055342,120]
[399164681,1766130671912,-833.05,0.00055342,120]
[399164682,1766130671922,-393.15,0.00055342,120]
[399164683,1766130671931,-500.98449731,0.00055342,120]
[399164684,1766130671940,-500.0,0.00055342,120]
[399164685,1766130671949,-501.72,0.00055342,120]
[399164686,1766130671958,-500.0,0.00055342,120]
[399164687,1766130671967,-445.54171138,0.00055342,120]
[399164688,1766130671976,-503.81247437,0.00055342,120]
[399164689,1766130671985,-500.0,0.00055342,120]
[399164690,1766130671995,-500.9589055,0.00055342,60]
[399164691,1766130672004,-500.0,0.00055342,120]
[399164692,1766130672013,-500.0,0.00055342,120]
[399164693,1766130672022,-504.21695292,0.00055342,120]
[399164694,1766130672032,-861.29,0.00055342,120]
[399164695,1766130672040,-501.0653403,0.00055342,120]
[399164696,1766130672049,-500.0,0.00055342,120]
[399164697,1766130672060,-153.76651025,0.00055342,120]
[399164698,1766130672069,-500.0,0.00055342,120]
[399164699,1766130672088,-501.18267106,0.00055342,120]
[399164700,1766130672104,-332.35335247,0.00055342,120]
[399164701,1766130672124,-504.06094839,0.00055342,120]
[399164702,1766130672141,-500.0,0.00055342,120]
[399164703,1766130672160,-500.0,0.00055342,120]
[399164704,1766130672177,-500.0,0.00055342,120]
[399164705,1766130672195,-500.0,0.00055342,120]
[399164706,1766130672211,-500.0,0.00055342,120]
[399164707,1766130672226,-500.0,0.00055342,120]
[399164708,1766130672245,-625.38837959,0.00055342,30]
[399164709,1766130672264,-502.35144983,0.00055342,120]
[399164710,1766130672276,-4150.56,0.00055342,120]
[399164711,1766130672295,-505.68743751,0.00055342,120]
[399164712,1766130672310,-500.0,0.00055342,120]
[399164713,1766130672325,-506.77537884,0.00055342,120]
[399164714,1766130672339,-500.0,0.00055342,120]
[399164715,1766130672354,-500.0,0.00055342,120]
[399164716,1766130672369,-500.0,0.00055342,120]
[399164717,1766130672383,-504.43332367,0.00055342,120]
[399164718,1766130672399,-500.0,0.00055342,120]
[399164719,1766130672413,-500.0,0.00055342,120]
[399164720,1766130672428,-500.0,0.00055342,120]
[399164721,1766130672443,-503.06730924,0.00055342,120]
[399164722,1766130672457,-1545.59,0.00055342,120]
[399164723,1766130672472,-601.18,0.00055342,120]
[399164724,1766130672486,-500.0,0.00055342,120]
[399164725,1766130672500,-500.0,0.00055342,120]
[399164726,1766130672515,-500.0,0.00055342,120]
[399164727,1766130672529,-500.0,0.00055342,120]
[399164728,1766130672543,-500.0,0.00055342,120]
[399164729,1766130672557,-500.0,0.00055342,120]
[399164730,1766130672570,-500.0,0.00055342,120]
[399164731,1766130672584,-500.0,0.00055342,120]
[399164732,1766130672596,-175.6447973,0.00055342,120]
[399164733,1766130672610,-3273.78,0.00055342,120]
[399164734,1766130672624,-500.0,0.00055342,120]
[399164735,1766130672638,-2163.92,0.00055342,120]
[399164736,1766130672653,-500.0,0.00055342,120]
[399164737,1766130672667,-503.01375607,0.00055342,120]
[399164738,1766130672682,-502.96092371,0.00055342,120]
[399164739,1766130672695,-500.0,0.00055342,120]
[399164740,1766130672710,-501.34110745,0.00055342,120]
[399164741,1766130672724,-615.54,0.00055342,120]
[399164742,1766130672737,-500.0,0.00055342,120]
[399164743,1766130672751,-2441.66,0.00055342,3]
[399164744,1766130672765,-500.0,0.00055342,120]
[399164745,1766130672779,-504.57945076,0.00055342,120]
[399164746,1766130672794,-500.0,0.00055342,120]
[399164747,1766130672808,-500.0,0.00055342,120]
[399164748,1766130672822,-535.83,0.00055342,120]
[399164749,1766130672835,-500.0,0.00055342,120]
[399164750,1766130672849,-500.0,0.00055342,120]
[399164751,1766130672862,-500.0,0.00055342,120]
[399164752,1766130672875,-500.0,0.00055342,120]
[399164753,1766130672888,-500.0,0.00055342,120]
[399164754,1766130672902,-500.0,0.00055342,120]
[399164755,1766130673013,-500.0,0.00055342,120]
[399164756,1766130673025,-500.0,0.00055342,120]
[399164757,1766130673034,-970.05,0.00055342,120]
[399164758,1766130673043,-158.0063025,0.00055342,120]
[399164759,1766130673052,-1307.75,0.00055342,120]
[399164760,1766130673061,-500.0,0.00055342,120]
[399164761,1766130673070,-500.0,0.00055342,120]
[399164762,1766130673079,-504.52325311,0.00055342,120]
[399164763,1766130673089,-529.54,0.00055342,120]
[399164764,1766130673098,-505.09894187,0.00055342,120]
[399164765,1766130673108,-501.90824856,0.00055342,120]
[399164766,1766130673118,-500.0,0.00055342,120]
[399164767,1766130673127,-471.51311297,0.00055342,120]
[399164768,1766130673136,-500.0,0.00055342,120]
[399164769,1766130673145,-500.0,0.00055342,120]
[399164770,1766130673164,-500.0,0.00055342,120]
[399164771,1766130673175,-619.49,0.00055342,120]
[399164772,1766130673185,-505.08657297,0.00055342,120]
[399164773,1766130673194,-340.63590807,0.00055342,120]
[399164774,1766130673204,-592.34065145,0.00055342,120]
[399164775,1766130673214,-500.0,0.00055342,120]
[399164776,1766130673223,-452.27612633,0.00055342,120]
[399164777,1766130673232,-500.0,0.00055342,120]
[399164778,1766130673242,-2004.58,0.00055342,120]
[399164779,1766130673252,-503.42863598,0.00055342,120]
[399164780,1766130673261,-500.0,0.00055342,120]
[399164781,1766130673270,-500.0,0.00055342,120]
[399164782,1766130673279,-555.38,0.00055342,120]
[399164783,1766130673288,-500.0,0.00055342,120]
[399164784,1766130673298,-500.0,0.00055342,120]
[399164785,1766130673307,-500.0,0.00055342,120]
[399164786,1766130673317,-394.37840046,0.00055342,120]
[399164787,1766130673328,-500.0,0.00055342,120]
[399164788,1766130673339,-506.64671979,0.00055342,120]
[399164789,1766130673350,-500.0,0.00055342,120]
[399164790,1766130673364,-500.0,0.00055342,120]
[399164791,1766130673374,-506.8001067,0.00055342,120]
[399164792,1766130673383,-570.98,0.00055342,120]
[399164793,1766130673393,-506.01206335,0.00055342,120]
[399164794,1766130673403,-500.0,0.00055342,120]
[399164795,1766130673413,-500.0,0.00055342,120]
[399164796,1766130673425,-500.0,0.00055342,120]
[399164797,1766130673435,-617.64,0.00055342,120]
[399164798,1766130673444,-708.43,0.00055342,120]
[399164799,1766130673454,-588.56441109,0.00055342,120]
[399164800,1766130673463,-500.0,0.00055342,120]
[399164801,1766130673473,-756.93,0.00055342,120]
[399164802,1766130673485,-1547.5,0.00055342,120]
[399164803,1766130673496,-564.73,0.00055342,120]
[399164804,1766130673508,-788.22,0.00055342,120]
[399164805,1766130673519,-500.0,0.00055342,120]
[399164806,1766130673529,-500.0,0.00055342,120]
[399164807,1766130673539,-504.3431381,0.00055342,120]
[399164808,1766130673548,-500.0,0.00055342,120]
[399164809,1766130673558,-500.0,0.00055342,120]
[399164810,1766130673568,-574.60516436,0.00055342,120]
[399164811,1766130673577,-500.0,0.00055342,120]
[399164812,1766130673586,-504.69992185,0.00055342,120]
[399164813,1766130673596,-500.0,0.00055342,120]
[399164814,1766130673605,-605.49668699,0.00055342,120]
[399164815,1766130673614,-501.88107869,0.00055342,120]
[399164816,1766130673623,-500.0,0.00055342,120]
[399164817,1766130673632,-1289.84,0.00055342,120]
[399164818,1766130673643,-500.0,0.00055342,120]
[399164819,1766130673658,-500.38666241,0.00055342,120]
[399164820,1766130673667,-500.0,0.00055342,120]
[399164821,1766130673678,-1514.92,0.00055342,120]
[399164822,1766130673687,-500.0,0.00055342,120]
[399164823,1766130673697,-9951.71,0.000554,14]
[399164824,1766130673707,-151.44692879,0.00055479,30]
[399164825,1766130673716,-186.0,0.00055548,120]
[399164826,1766130673726,-156.09174027,0.00055552,120]
[399164827,1766130673736,-209.0,0.00055554,120]
[399164828,1766130673746,-231.0,0.00055604,120]
[399164829,1766130673756,-780.17,0.00055616,120]
[399164830,1766130673766,-500.0,0.00055616,7]
[399164831,1766130673775,-500.0,0.00055616,120]
[399164832,1766130673784,-500.0,0.00055616,120]
[399164833,1766130673795,-241.21160379,0.00055616,120]
[399164834,1766130673805,-500.0,0.00055616,120]
[399164835,1766130673815,-188.6975205,0.00055616,120]
[399164836,1766130673823,-1000.0,0.00055616,2]
[399164837,1766130673834,-311.9180338,0.00055616,120]
[399164838,1766130673843,-497.50312539,0.00055616,120]
[399164839,1766130673852,-500.0,0.00055616,120]
[399164840,1766130673860,-500.0,0.00055616,30]
[399164841,1766130673869,-527.64,0.00055616,120]
[399164842,1766130673879,-500.0,0.00055616,120]
[399164843,1766130673887,-500.0,0.00055616,120]
[399164844,1766130673897,-808.56,0.00055616,120]
[399164845,1766130673906,-500.0,0.00055616,5]
[399164846,1766130673916,-500.0,0.00055616,120]
[399164847,1766130673926,-500.0,0.00055616,120]
[399164848,1766130673937,-500.0,0.00055616,120]
[399164849,1766130673946,-500.0,0.00055616,120]
[399164850,1766130673956,-162.19231205,0.00055616,120]
[399164851,1766130673966,-500.0,0.00055616,120]
[399164852,1766130673976,-161.0,0.00055616,120]
[399164853,1766130673986,-506.5375481,0.00055616,120]
[399164854,1766130673995,-532.18699058,0.00055616,120]
[399164855,1766130674004,-500.0,0.00055616,30]
[399164856,1766130674014,-529.35843866,0.00055616,120]
[399164857,1766130674023,-598.2489184,0.00055616,120]
[399164858,1766130674032,-500.0,0.00055616,120]
[399164859,1766130674042,-446.98591895,0.00055616,120]
[399164860,1766130674051,-3828.03,0.00055616,120]
[399164861,1766130674060,-496.97790525,0.00055616,120]
[399164862,1766130674070,-363.21973517,0.00055616,120]
[399164863,1766130674079,-1000.0,0.00055616,2]
[399164864,1766130674090,-500.0,0.00055616,120]
[399164865,1766130674099,-500.0,0.00055616,120]
[399164866,1766130674108,-510.49021236,0.00055616,120]
[399164867,1766130674119,-500.0,0.00055616,120]
[399164868,1766130674128,-500.0,0.00055616,120]
[399164869,1766130674137,-264.15167146,0.00055616,120]
[399164870,1766130674146,-1164.05,0.00055616,120]
[399164871,1766130674155,-500.0,0.00055616,120]
[399164872,1766130674164,-500.0,0.00055616,2]
[399164873,1766130674174,-500.0,0.00055616,120]
[399164874,1766130674183,-500.0,0.00055616,120]
[399164875,1766130674193,-500.0,0.00055616,120]
[399164876,1766130674203,-500.0,0.00055616,120]
[399164877,1766130674212,-500.0,0.00055616,120]
[399164878,1766130674222,-500.0,0.00055616,120]
[399164879,1766130674231,-500.0,0.00055616,120]
[399164880,1766130674241,-500.0,0.00055616,120]
[399164881,1766130674251,-500.0,0.00055616,120]
[399164882,1766130674260,-302.67818307,0.00055616,120]
[399164883,1766130674270,-500.0,0.00055616,60]
[399164884,1766130674280,-500.0,0.00055616,120]
[399164885,1766130674363,-538.52,0.00055616,120]
[399164886,1766130674373,-500.0,0.00055616,120]
[399164887,1766130674382,-511.37574481,0.00055616,120]
[399164888,1766130674391,-500.0,0.00055616,120]
[399164889,1766130674401,-500.0,0.00055616,120]
[399164890,1766130674410,-189.09035974,0.00055616,120]
[399164891,1766130674419,-299.94299387,0.00055616,120]
[399164892,1766130674429,-1789.97,0.00055616,120]
[399164893,1766130674438,-500.0,0.00055616,120]
[399164894,1766130674449,-500.0,0.00055616,120]
[399164895,1766130674458,-500.0,0.00055616,120]
[399164896,1766130674468,-500.0,0.00055616,120]
[399164897,1766130674478,-500.0,0.00055616,120]
[399164898,1766130674488,-500.0,0.00055616,120]
[399164899,1766130674499,-500.0,0.00055616,120]
[399164900,1766130674509,-500.0,0.00055616,120]
[399164901,1766130674519,-500.0,0.00055616,120]
[399164902,1766130674528,-512.97,0.00055616,120]
[399164903,1766130674538,-353.07327147,0.00055616,120]
[399164904,1766130674547,-500.0,0.00055616,120]
[399164905,1766130674556,-500.0,0.00055616,120]
[399164906,1766130674565,-500.0,0.00055616,120]
[399164907,1766130674575,-561.70814093,0.00055616,120]
[399164908,1766130674584,-500.0,0.00055616,120]
[399164909,1766130674593,-500.0,0.00055616,120]
[399164910,1766130674603,-1954.53,0.00055616,120]
[399164911,1766130674611,-500.0,0.00055616,120]
[399164912,1766130674621,-292.64883335,0.00055616,120]
[399164913,1766130674630,-500.0,0.00055616,120]
[399164914,1766130674640,-500.0,0.00055616,120]
[399164915,1766130674653,-500.0,0.00055616,120]
[399164916,1766130674662,-500.0,0.00055616,120]
[399164917,1766130674671,-1050.87,0.00055616,120]
[399164918,1766130674680,-3817.38,0.00055616,120]
[399164919,1766130674690,-500.0,0.00055616,120]
[399164920,1766130674699,-500.0,0.00055616,120]
[399164921,1766130674708,-500.0,0.00055616,120]
[399164922,1766130674719,-500.0,0.00055616,120]
[399164923,1766130674728,-500.0,0.00055616,30]
[399164924,1766130674737,-500.0,0.00055616,120]
[399164925,1766130674746,-500.0,0.00055616,30]
[399164926,1766130674755,-500.0,0.00055616,120]
[399164927,1766130674764,-1315.23,0.00055616,120]
[399164928,1766130674773,-500.0,0.00055616,120]
[399164929,1766130674783,-500.0,0.00055616,120]
[399164930,1766130674791,-500.0,0.00055616,120]
[399164931,1766130674800,-500.0,0.00055616,120]
[399164932,1766130674810,-500.0,0.00055616,120]
[399164933,1766130674819,-500.0,0.00055616,120]
[399164934,1766130674828,-528.79789629,0.00055616,120]
[399164935,1766130674837,-500.0,0.00055616,120]
[399164936,1766130674846,-1071.88,0.00055616,120]
[399164937,1766130674855,-500.0,0.00055616,120]
[399164938,1766130674864,-500.0,0.00055616,120]
[399164939,1766130674873,-500.0,0.00055616,120]
[399164940,1766130674882,-500.0,0.00055616,120]
[399164941,1766130674891,-494.84940131,0.00055616,120]
[399164942,1766130674900,-500.0,0.00055616,120]
[399164943,1766130674909,-483.44884882,0.00055616,120]
[399164944,1766130674918,-500.0,0.00055616,120]
[399164945,1766130674927,-500.0,0.00055616,120]
[399164946,1766130674936,-500.0,0.00055616,120]
[399164947,1766130674945,-500.0,0.00055616,120]
[399164948,1766130674956,-349.63040578,0.00055616,60]
[399164949,1766130674967,-500.0,0.00055616,120]
[399164950,1766130674977,-500.0,0.00055616,120]
[399164951,1766130674987,-500.0,0.00055616,120]
[399164952,1766130674996,-500.0,0.00055616,120]
[399164953,1766130675006,-502.30606396,0.00055616,120]
[399164954,1766130675016,-392.87892643,0.00055616,120]
[399164955,1766130675026,-500.0,0.00055616,120]
[399164956,1766130675036,-524.88,0.00055616,120]
[399164957,1766130675045,-500.0,0.00055616,120]
[399164958,1766130675055,-500.0,0.00055616,120]
[399164959,1766130675064,-696.02,0.00055616,120]
[399164960,1766130675073,-1278.98,0.00055616,120]
[399164961,1766130675082,-848.2,0.00055616,120]
[399164962,1766130675091,-504.47919047,0.00055616,120]
[399164963,1766130675102,-682.7,0.00055616,120]
[399164964,1766130675113,-500.0,0.00055616,120]
[399164965,1766130675122,-500.0,0.00055616,120]
[399164966,1766130675131,-1176.57,0.00055616,120]
[399164967,1766130675140,-500.0,0.00055616,120]
[399164968,1766130675149,-500.0,0.00055616,120]
[399164969,1766130675159,-500.0,0.00055616,120]
[399164970,1766130675168,-500.0,0.00055616,120]
[399164971,1766130675177,-500.0,0.00055616,120]
[399164972,1766130675186,-500.0,0.00055616,120]
[399164973,1766130675195,-500.0,0.00055616,120]
[399164974,1766130675204,-500.0,0.00055616,120]
[399164975,1766130675214,-500.0,0.00055616,120]
[399164976,1766130675223,-500.0,0.00055616,120]
[399164977,1766130675233,-505.11688952,0.00055616,120]
[399164978,1766130675243,-500.0,0.00055616,120]
[399164979,1766130675252,-1672.469074,0.00055616,120]
[399164980,1766130675261,-500.0,0.00055616,120]
[399164981,1766130675271,-500.0,0.00055616,120]
[399164982,1766130675281,-628.56,0.00055616,120]
[399164983,1766130675290,-500.0,0.00055616,120]
[399164984,1766130675299,-1384.97,0.00055616,120]
[399164985,1766130675309,-500.0,0.00055616,120]
[399164986,1766130675318,-500.0,0.00055616,120]
[399164987,1766130675327,-500.0,0.00055616,120]
[399164988,1766130675336,-1052.14,0.00055616,120]
[399164989,1766130675346,-418.52602691,0.00055616,120]
[399164990,1766130675355,-500.0,0.00055616,120]
[399164991,1766130675364,-500.0,0.00055616,120]
[399164992,1766130675373,-500.0,0.00055616,120]
[399164993,1766130675382,-500.0,0.00055616,120]
[399164994,1766130675391,-500.0,0.00055616,120]
[399164995,1766130675400,-500.0,0.00055616,120]
[399164996,1766130675409,-500.0,0.00055616,120]
[399164997,1766130675418,-500.0,0.00055616,120]
[399164998,1766130675428,-500.0,0.00055616,120]
[399164999,1766130675437,-500.0,0.00055616,120]
[399165000,1766130675446,-500.0,0.00055616,120]
[399165001,1766130675456,-460.38,0.00055616,120]
[399165002,1766130675465,-500.0,0.00055616,120]
[399165003,1766130675475,-1084.45,0.00055616,120]
[399165004,1766130675485,-500.0,0.00055616,120]
[399165005,1766130675494,-898.43,0.00055616,120]
[399165006,1766130675504,-500.0,0.00055616,120]
[399165007,1766130675514,-500.0,0.00055616,120]
[399165008,1766130675523,-500.0,0.00055616,120]
[399165009,1766130675533,-502.96542127,0.00055616,120]
[399165010,1766130675543,-500.0,0.00055616,30]
[399165011,1766130675552,-841.83,0.00055616,120]
[399165012,1766130675562,-508.03227728,0.00055616,120]
[399165013,1766130675571,-500.0,0.00055616,120]
[399165014,1766130675580,-500.0,0.00055616,120]
[399165015,1766130675589,-500.0,0.00055616,120]
[399165016,1766130675598,-500.0,0.00055616,120]
[399165017,1766130675607,-500.0,0.00055616,120]
[399165018,1766130675616,-1049.58,0.00055616,120]
[399165019,1766130675625,-500.0,0.00055616,120]
[399165020,1766130675635,-500.0,0.00055616,60]
[399165021,1766130675646,-500.0,0.00055616,120]
[399165022,1766130675656,-500.0,0.00055616,120]
[399165023,1766130675666,-500.0,0.00055616,120]
[399165024,1766130675675,-5832.94,0.00055616,120]
[399165025,1766130675684,-500.0,0.00055616,120]
[399165026,1766130675694,-500.0,0.00055616,120]
[399165027,1766130675704,-500.0,0.00055616,120]
[399165028,1766130675725,-500.0,0.00055616,120]
[399165029,1766130675735,-1123.95,0.00055616,120]
[399165030,1766130675745,-187.53269219,0.00055616,120]
[399165031,1766130675754,-500.0,0.00055616,120]
[399165032,1766130675764,-447.44255259,0.00055616,120]
[399165033,1766130675773,-503.13277318,0.00055616,120]
[399165034,1766130675783,-500.0,0.00055616,120]
[399165035,1766130675793,-500.0,0.00055616,120]
[399165036,1766130675802,-500.0,0.00055616,120]
[399165037,1766130675811,-482.29159903,0.00055616,120]
[399165038,1766130675820,-500.0,0.00055616,120]
[399165039,1766130675830,-500.0,0.00055616,120]
[399165040,1766130675839,-500.0,0.00055616,120]
[399165041,1766130675849,-500.0,0.00055616,120]
[399165042,1766130675858,-504.52006682,0.00055616,120]
[399165043,1766130675867,-500.0,0.00055616,120]
[399165044,1766130675876,-500.0,0.00055616,120]
[399165045,1766130675886,-500.0,0.00055616,120]
[399165046,1766130675895,-500.0,0.00055616,120]
[399165047,1766130675904,-799.69,0.00055616,21]
[399165048,1766130675914,-500.0,0.00055616,120]
[399165049,1766130675924,-565.42,0.00055616,120]
[399165050,1766130675934,-418.55801081,0.00055616,120]
[399165051,1766130675944,-500.0,0.00055616,120]
[399165052,1766130675953,-500.0,0.00055616,120]
[399165053,1766130675962,-500.0,0.00055616,120]
[399165054,1766130675972,-500.0,0.00055616,120]
[399165055,1766130675981,-1745.65,0.00055616,120]
[399165056,1766130675991,-500.0,0.00055616,120]
[399165057,1766130676000,-503.96539603,0.00055616,120]
[399165058,1766130676009,-1000.0,0.00055616,120]
[399165059,1766130676021,-833.05,0.00055616,120]
[399165060,1766130676030,-504.35201723,0.00055616,120]
[399165061,1766130676039,-501.72,0.00055616,120]
[399165062,1766130676048,-500.0,0.00055616,120]
[399165063,1766130676058,-500.0,0.00055616,120]
[399165064,1766130676067,-500.0,0.00055616,120]
[399165065,1766130676076,-500.0,0.00055616,120]
[399165066,1766130676086,-861.29,0.00055616,120]
[399165067,1766130676096,-462.9422045,0.00055616,120]
[399165068,1766130676105,-503.92855853,0.00055616,120]
[399165069,1766130676114,-500.0,0.00055616,120]
[399165070,1766130676123,-500.0,0.00055616,120]
[399165071,1766130676133,-500.0,0.00055616,120]
[399165072,1766130676142,-500.0,0.00055616,120]
[399165073,1766130676152,-500.0,0.00055616,120]
[399165074,1766130676161,-502.72814505,0.00055616,120]
[399165075,1766130676170,-4150.56,0.00055616,120]
[399165076,1766130676179,-500.0,0.00055616,120]
[399165077,1766130676190,-500.0,0.00055616,120]
[399165078,1766130676200,-500.0,0.00055616,120]
[399165079,1766130676210,-500.0,0.00055616,120]
[399165080,1766130676220,-242.34786384,0.00055616,120]
[399165081,1766130676229,-500.0,0.00055616,120]
[399165082,1766130676239,-500.0,0.00055616,120]
[399165083,1766130676248,-1545.59,0.00055616,120]
[399165084,1766130676257,-601.18,0.00055616,120]
[399165085,1766130676267,-500.0,0.00055616,120]
[399165086,1766130676276,-500.0,0.00055616,120]
[399165087,1766130676285,-498.31534613,0.00055616,120]
[399165088,1766130676295,-500.0,0.00055616,120]
[399165089,1766130676304,-500.0,0.00055616,120]
[399165090,1766130676315,-500.0,0.00055616,120]
[399165091,1766130676326,-500.0,0.00055616,120]
[399165092,1766130676337,-500.0,0.00055616,120]
[399165093,1766130676348,-3273.78,0.00055616,120]
[399165094,1766130676358,-500.0,0.00055616,120]
[399165095,1766130676367,-2163.92,0.00055616,120]
[399165096,1766130676377,-500.0,0.00055616,120]
[399165097,1766130676387,-506.50000959,0.00055616,120]
[399165098,1766130676396,-615.54,0.00055616,120]
[399165099,1766130676405,-500.0,0.00055616,120]
[399165100,1766130676415,-2441.66,0.00055616,3]
[399165101,1766130676424,-500.0,0.00055616,120]
[399165102,1766130676436,-500.0,0.00055616,120]
[399165103,1766130676445,-533.4780149,0.00055616,120]
[399165104,1766130676455,-535.83,0.00055616,120]
[399165105,1766130676466,-500.0,0.00055616,120]
[399165106,1766130676477,-500.0,0.00055616,120]
[399165107,1766130676487,-500.0,0.00055616,120]
[399165108,1766130676497,-501.420657,0.00055616,120]
[399165109,1766130676507,-500.0,0.00055616,120]
[399165110,1766130676518,-500.0,0.00055616,120]
[399165111,1766130676527,-500.0,0.00055616,120]
[399165112,1766130676537,-500.0,0.00055616,120]
[399165113,1766130676547,-970.05,0.00055616,120]
[399165114,1766130676556,-1307.75,0.00055616,120]
[399165115,1766130676565,-500.0,0.00055616,120]
[399165116,1766130676574,-500.0,0.00055616,120]
[399165117,1766130676584,-529.54,0.00055616,120]
[399165118,1766130676593,-500.0,0.00055616,120]
[399165119,1766130676603,-500.0,0.00055616,120]
[399165120,1766130676744,-500.0,0.00055616,120]
[399165121,1766130676754,-500.0,0.00055616,120]
[399165122,1766130676763,-619.49,0.00055616,120]
[399165123,1766130676773,-500.0,0.00055616,120]
[399165124,1766130676782,-476.38044235,0.00055616,120]
[399165125,1766130676791,-2004.58,0.00055616,120]
[399165126,1766130676799,-632.73949803,0.00055616,120]
[399165127,1766130676808,-500.0,0.00055616,120]
[399165128,1766130676818,-555.38,0.00055616,120]
[399165129,1766130676827,-500.0,0.00055616,120]
[399165130,1766130676836,-500.0,0.00055616,120]
[399165131,1766130676845,-512.07232133,0.00055616,120]
[399165132,1766130676855,-500.0,0.00055616,120]
[399165133,1766130676864,-500.0,0.00055616,120]
[399165134,1766130676873,-500.0,0.00055616,120]
[399165135,1766130676883,-570.98,0.00055616,120]
[399165136,1766130676891,-500.0,0.00055616,120]
[399165137,1766130676900,-500.0,0.00055616,120]
[399165138,1766130676909,-500.0,0.00055616,120]
[399165139,1766130676918,-617.64,0.00055616,120]
[399165140,1766130676927,-708.43,0.00055616,120]
[399165141,1766130676936,-500.0,0.00055616,120]
[399165142,1766130676945,-756.93,0.00055616,120]
[399165143,1766130676954,-1547.5,0.00055616,120]
[399165144,1766130676963,-564.73,0.00055616,120]
[399165145,1766130676972,-788.22,0.00055616,120]
[399165146,1766130676982,-500.0,0.00055616,120]
[399165147,1766130676991,-619.53670702,0.00055616,120]
[399165148,1766130677000,-500.0,0.00055616,120]
[399165149,1766130677010,-500.0,0.00055616,120]
[399165150,1766130677020,-500.0,0.00055616,120]
[399165151,1766130677030,-500.0,0.00055616,120]
[399165152,1766130677039,-1289.84,0.00055616,120]
[399165153,1766130677049,-500.0,0.00055616,120]
[399165154,1766130677058,-462.04911893,0.00055616,120]
[399165155,1766130677067,-1514.92,0.00055616,120]
[399165156,1766130677077,-302.92998342,0.0005562,120]
[399165157,1766130677087,-201.12,0.00055654,30]
[399165158,1766130677095,-200.0,0.00055679,120]
[399165159,1766130677104,-151.44692879,0.00055753,30]